[Event "Sardinia World Festival-A 2024"]
[Site "Orosei"]
[Date "2024.04.27"]
[Round "1.32"]
[White "Montorsi, Matteo"]
[Black "Fromm, Marius"]
[Result "0-1"]
[ECO "B26"]
[WhiteElo "2168"]
[BlackElo "2454"]
[Annotator "TA"]
[PlyCount "104"]
[EventDate "2024.04.26"]
[EventType "swiss"]
[EventCountry "ITA"]
[SourceTitle "playchess.com"]
[Source "ChessBase"]
[SourceQuality "1"]
[TimeControl "40/5400+30:1800+30"]

{[%evp 21,104,-13,-8,-22,0,-15,0,-31,-25,-54,-20,-14,-12,-43,-51,-59,-58,-57,-60,-111,-16,-50,-29,-68,54,45,95,82,84,35,91,63,160,0,0,0,139,0,10,-15,-60,-52,-42,-84,-3,-16,4,3,10,-233,0,-148,52,59,31,-46,-50,-175,-195,-179,-156,-237,-217,-320,-317,-363,-360,-325,-342,-502,-491,-1195,-1176,-1170,-1114,-3387,-3084,-7151,-29968,-29984,-612,-29984,-29985,-29989,-29984]} 1. e4 {[%emt 0:00:03]} c5 {[%emt 0:00:14]} 2. Nc3 {[%emt 0:00:07]} Nc6 {[%emt 0:00:07]} 3. g3 {[%emt 0:01:50]} g6 {[%emt 0:00:07]} 4. Bg2 {[%emt 0:00:05]} Bg7 {[%emt 0:00:05]} 5. d3 {[%emt 0:00:07]} Nf6 {[%emt 0:01:19]} 6. h3 {[%emt 0:03:43]} O-O {[%emt 0:01:23]} 7. Be3 {[%emt 0:00:07]} d6 {[%emt 0:03:42]} 8. Nge2 {[%emt 0:04:05]} Rb8 {[%emt 0:01:46]} 9. O-O {[%emt 0:02:25]} b5 {[%emt 0:01:40][%cal Bb7b5,Bb5b4][%mdl 32]} 10. Qd2 {[%emt 0:00:27]} b4 {[%emt 0:01:03]} 11. Nd1 {[%emt 0:00:51]} a5 {[%emt 0:04:13]} 12. f4 {[%emt 0:17:41][%cal Oe4e5]} Nd7 {[%emt 0:03:20]} 13. g4 {[%emt 0:09:38]} Ba6 {[%emt 0:02:55]} 14. c4 {[%emt 0:08:31] The position is equal.} Nd4 {[%emt 0:09:07]} 15. Nf2 {[%emt 0:03:33]} b3 {[%emt 0:03:22]} 16. Bxd4 {[%emt 0:05:25]} cxd4 {[%emt 0:00:07]} 17. axb3 {[%emt 0:00:20]} Rb4 {[%emt 0:11:46][%cal Od7c5]} 18. Nc1 {[%emt 0:09:40]} Nc5 {[%emt 0:01:04][%cal Oa6c8][%mdl 1024] Black has compensation.} 19. g5 {[%emt 0:01:00]} Bc8 {[%emt 0:08:31][%cal Oe7e5]} 20. Bf3 {[%emt 0:04:26]} (20. Ng4 $15) 20... Qb6 {[%emt 0:04:02] Black is more active.} (20... Nxb3 $6 21. Nxb3 Rxb3 22. Qxa5 $14) (20... f6 $17 21. Bg4 e6 (21... Nxb3 22. Nxb3 Rxb3 23. Rxa5 $11)) 21. Bg4 {[%emt 0:06:52]} Bb7 {[%emt 0:12:46][%cal Of7f5]} (21... Nxb3 22. Nxb3 Rxb3 23. Qxa5 $11) 22. Bd1 {[%emt 0:00:54] [#]} a4 {[%emt 0:01:52]} 23. Ng4 $14 {[%emt 0:00:42]} axb3 {[%emt 0:08:40]} (23... Nxb3 24. Nxb3 axb3 25. f5 $18) (23... f5 $14 24. gxf6 exf6 (24... Nxb3 $2 25. Bxb3 axb3 26. fxg7 $18) (24... Bxf6 25. f5 $16)) 24. f5 $16 {[%emt 0:00:57] Strongly threatening f6.} Be5 {[%emt 0:08:14]} 25. Qf2 {[%emt 0:06:19]} (25. Ra3 $16) 25... Qd8 {[%emt 0:04:36]} (25... gxf5 $14 26. Qxf5 Qc7 (26... Bg7 27. Nh6+ Bxh6 28. gxh6 $11)) 26. Qh4 {[%emt 0:02:55]} (26. Nxe5 $6 dxe5 27. h4 gxf5 $11) 26... Kh8 {[%emt 0:02:07]} (26... e6 $14) 27. Qh6 {[%emt 0:04:08] Intending fxg6 and mate.} Bg7 {[%emt 0:02:17]} 28. Qh4 {[%emt 0:00:03]} Be5 {[%emt 0:00:02]} 29. Qh6 {[%emt 0:00:09]} ({White should try} 29. Nxe5 $16 {[%cal Of5g6] White threatens fxg6! and mate.} dxe5 30. Ra5) 29... Rg8 {[%emt 0:01:09]} (29... Bg7 $5 30. Qh4 $8 Re8 $14) 30. fxg6 {[%emt 0:03:52]} (30. f6 {is interesting.} Bc8 31. fxe7 Qxe7 32. Nf6) 30... Rxg6 {[%emt 0:00:20]} (30... fxg6 $2 31. Nxe5 Rg7 32. Nf7+ Rxf7 33. Rxf7 $18) 31. Qh5 {[%emt 0:00:27][%cal Og4h6]} f6 {[%emt 0:02:26]} 32. h4 {[%emt 0:00:34]} Qg8 {[%emt 0:01:16]} (32... Ne6 $17 {Threatens to win with ...Bf4.} 33. Nh6 Qf8 (33... fxg5 $2 34. Nf7+ Kg7 35. Nxd8 $18) (33... Nxg5 $2 34. hxg5 Kg7 35. Kf2 $18)) 33. Nh6 $11 {[%emt 0:00:45]} Qg7 {[%emt 0:00:18][%cal Rf6g5]} 34. Bg4 {[%emt 0:01:14]} e6 {[%emt 0:00:57] Against Bf5} (34... fxg5 $2 35. hxg5 Bf6 36. Rf3 $18 (36. gxf6 exf6 37. Nf5 Rxg4+ 38. Kh2 Qg8 $11)) 35. Rf2 $2 {[%emt 0:02:19]} (35. Ne2 $11 {and White is okay.}) 35... Rb6 $2 {[%emt 0:00:25]} (35... fxg5 $2 36. Nf7+ Kg8 37. hxg5 $18) (35... Bc6 $1 $19 {White must now prevent ...Rb8.} 36. Bd1 Rb8 (36... fxg5 37. Nf7+ Kg8 38. hxg5 $11)) 36. Kf1 {[%emt 0:00:22] [#]} (36. Ra7 $11 {remains equal.}) 36... Ra6 $2 {[%emt 0:00:34]} (36... fxg5 $2 37. Nf7+ Kg8 38. hxg5 $18) ({Better is} 36... Bc6 $1 $17 {And now ...Rb8 would win.} 37. Bd1 Rb8 (37... fxg5 38. Ra7 $14)) 37. Rxa6 $14 {[%emt 0:00:08]} Bxa6 {[%emt 0:00:01]} 38. Bh3 {[%emt 0:01:14]} (38. Bd1 $14) 38... Bc8 $15 {[%emt 0:00:54]} (38... fxg5 $2 39. Nf7+ Kg8 40. hxg5 Nxe4 41. Nh6+ Kh8 42. Qf3 (42. dxe4 Bxc4+ 43. Ne2 d3 $11) 42... Nxf2 (42... Ng3+ $2 43. Ke1 $18) 43. Qa8+ $18) 39. Qf3 {[%emt 0:01:19] [#]} (39. Ng4 $15 fxg5 40. hxg5) 39... Rxh6 $1 $19 {[%emt 0:00:20]} (39... fxg5 $2 40. hxg5 $18) 40. gxh6 {[%emt 0:00:05]} Qxh6 {[%emt 0:00:01]} 41. Ne2 {[%emt 0:03:54]} (41. Qd1 $17) 41... Qxh4 {[%emt 0:01:36]} 42. Rg2 {[%emt 0:07:11]} (42. Nf4 $142) 42... Bb7 {[%emt 0:01:03]} 43. Rg4 {[%emt 0:12:19]} Qh6 {[%emt 0:00:05][%cal Of6f5]} 44. Qg2 {[%emt 0:00:15]} Qf8 {[%emt 0:00:14] Dodges Rg8+} (44... Nxd3 45. Rg8#) 45. Qf3 {[%emt 0:02:35]} (45. Qg1 {was worth a try.} Nxd3 (45... f5 $2 46. exf5 Nxd3 47. Rxd4 $19) 46. Nxd4 Nxb2 47. Rh4 Bxd4 (47... Nxc4 48. Qg6 $11) 48. Qxd4) 45... f5 {[%emt 0:01:59]} 46. Rg1 {[%emt 0:03:39] [#]} (46. Rh4 $142 Nxd3 47. Qh5 fxe4+ (47... Bxe4 48. Qxh7#) 48. Nf4) 46... Nxd3 $1 {[%emt 0:00:50][%mdl 512]} 47. Ng3 {[%emt 0:00:44]} (47. Bg2 Nxb2) 47... Nxb2 {[%emt 0:03:13]} (47... Bxe4 $2 {is the wrong capture.} 48. Nxe4 Nf4 49. Nf2 $18) 48. Nxf5 {[%emt 0:01:09]} exf5 {[%emt 0:00:14]} 49. Bxf5 {[%emt 0:00:02]} Nxc4 {[%emt 0:00:26]} 50. Ke2 {[%emt 0:00:50] Against Nd2} Ne3 {[%emt 0:00:44]} (50... Qh6 $142 51. Rg8+ Kxg8 52. Qxb3 Qh5+ 53. Kf1 Qh1+ 54. Ke2 Qg2+ (54... Bxe4 55. Qxc4+ Kg7 56. Bxe4 Qxe4+ 57. Kf2 h5 58. Qc7+ Kh6 59. Qc4 Qe3+ 60. Kf1 Qf3+ 61. Kg1 d3 62. Qe6+ Qf6 63. Qxf6+ Bxf6 64. Kf2 d2 65. Ke2 Bg5 66. Kd3 d1=Q+ 67. Kc4 Qc2+ 68. Kd5 Qc5+ 69. Ke6 Qc6 70. Kf7 Qd7+ 71. Kf8 Qg7+ 72. Ke8 Qe7#) 55. Kd3 Qf1+ 56. Kc2 d3+ 57. Qxd3 Qf2+ (57... Qxd3+ $2 58. Kxd3 Nb2+ 59. Ke2 $19) 58. Kd1 Nb2+ 59. Kc1 Nxd3+ 60. Kd1 Nb2+ 61. Kc1 Qe1+ 62. Kc2 Qd1#) 51. Qh5 {[%emt 0:00:40][%csl Gf5][%cal Rh5h7]} Nxf5 {[%emt 0:00:16]} 52. exf5 {[%emt 0:00:03]} Be4 {[%emt 0:00:42] Weighted Error Value: White=1.01/Black=0.47.  Loses game:     	White=1     	---        Missed win:     	---       	Black=1      Mistake:       	White=10    	Black=7      Inaccurate:     	White=7     	Black=1      OK:         	White=7     	Black=12     Best:        	White=3     	---        Strong:       	---       	Black=1} 0-1

[Event "Sardinia World Festival-A 2024"]
[Site "Orosei"]
[Date "2024.04.27"]
[Round "1.33"]
[White "Levin, Guy"]
[Black "Cina`, Vittorio"]
[Result "1/2-1/2"]
[ECO "D00"]
[WhiteElo "2451"]
[BlackElo "2165"]
[Annotator "ChessBase"]
[PlyCount "81"]
[EventDate "2024.04.26"]
[EventType "swiss"]
[EventCountry "ITA"]
[SourceTitle "playchess.com"]
[Source "ChessBase"]
[SourceQuality "1"]
[TimeControl "40/5400+30:1800+30"]

1. d4 {[%emt 0:00:19]} Nf6 {[%emt 0:00:07]} 2. Bg5 {[%emt 0:00:13]} d5 {[%emt 0:01:52]} 3. Bxf6 {[%emt 0:00:09]} exf6 {[%emt 0:00:12]} 4. e3 {[%emt 0:00:12]} Bd6 {[%emt 0:01:29]} 5. c4 {[%emt 0:00:19]} dxc4 {[%emt 0:00:23]} 6. Bxc4 {[%emt 0:00:08]} Qe7 {[%emt 0:00:58]} 7. Nc3 {[%emt 0:00:31]} c6 {[%emt 0:00:37]} 8. Qc2 {[%emt 0:00:30]} Nd7 {[%emt 0:04:00]} 9. Nge2 {[%emt 0:00:54]} f5 {[%emt 0:05:24]} 10. h4 {[%emt 0:07:17]} h5 {[%emt 0:05:32]} 11. O-O-O {[%emt 0:04:32]} Nf6 {[%emt 0:02:46]} 12. Nf4 {[%emt 0:05:55]} Bxf4 {[%emt 0:11:14]} 13. exf4 {[%emt 0:00:03]} O-O {[%emt 0:00:15]} 14. d5 {[%emt 0:05:50]} Qb4 {[%emt 0:07:25]} 15. Qb3 {[%emt 0:06:06]} Qxb3 {[%emt 0:02:10]} 16. Bxb3 {[%emt 0:00:04]} Bd7 {[%emt 0:00:51]} 17. Rhe1 {[%emt 0:02:44]} Rfe8 {[%emt 0:07:00]} 18. Re5 {[%emt 0:03:05]} Kf8 {[%emt 0:07:52]} 19. f3 {[%emt 0:06:46]} cxd5 {[%emt 0:17:16]} 20. Bxd5 {[%emt 0:01:36]} Rab8 {[%emt 0:00:34]} 21. Bb3 {[%emt 0:08:41]} Rbd8 {[%emt 0:04:10]} 22. a4 {[%emt 0:09:37]} g6 {[%emt 0:19:23]} 23. Rd6 {[%emt 0:11:40]} Rxe5 {[%emt 0:00:00]} 24. fxe5 {[%emt 0:00:46]} Ne8 {[%emt 0:00:00]} 25. Rd4 {[%emt 0:05:58]} Nc7 {[%emt 0:00:00]} 26. a5 {[%emt 0:01:14]} Ke8 {[%emt 0:00:00]} 27. Rb4 {[%emt 0:01:49]} Na6 {[%emt 0:00:00]} 28. Rd4 {[%emt 0:01:52]} Nc5 {[%emt 0:00:00]} 29. Bc2 {[%emt 0:01:04]} Rc8 {[%emt 0:00:00]} 30. Kd2 {[%emt 0:02:59]} Ne6 {[%emt 0:00:00]} 31. Rb4 {[%emt 0:00:30]} Bc6 {[%emt 0:00:00]} 32. Ke3 {[%emt 0:01:34]} Rd8 {[%emt 0:00:00]} 33. Bb3 {[%emt 0:01:22]} f4+ {[%emt 0:00:00]} 34. Ke2 {[%emt 0:00:02]} Rd4 {[%emt 0:00:00]} 35. Rc4 {[%emt 0:00:41]} Ke7 {[%emt 0:00:00]} 36. a6 {[%emt 0:03:17]} Rxc4 {[%emt 0:01:04]} 37. Bxc4 {[%emt 0:00:03]} bxa6 {[%emt 0:00:58]} 38. Bxa6 {[%emt 0:00:06]} Nd4+ {[%emt 0:03:35]} 39. Kf2 {[%emt 0:00:02]} Ke6 {[%emt 0:00:33]} 40. Bc4+ {[%emt 0:00:12]} Kxe5 {[%emt 0:00:54]} 41. Bxf7 {[%emt 0:30:07]} 1/2-1/2

[Event "Sardinia World Festival-A 2024"]
[Site "Orosei"]
[Date "2024.04.27"]
[Round "1.34"]
[White "Nurgali, Nazerke"]
[Black "Olsen, Filip Boe"]
[Result "0-1"]
[ECO "E06"]
[WhiteElo "2148"]
[BlackElo "2440"]
[Annotator "RC"]
[PlyCount "146"]
[EventDate "2024.04.26"]
[EventType "swiss"]
[EventCountry "ITA"]
[SourceTitle "playchess.com"]
[Source "ChessBase"]
[SourceQuality "1"]
[TimeControl "40/5400+30:1800+30"]

1. d4 {[%emt 0:00:05]} d5 {[%emt 0:00:11]} 2. Nf3 {[%emt 0:00:22]} e6 {[%emt 0:00:22]} 3. g3 {[%emt 0:02:08]} Nf6 {[%emt 0:01:20]} 4. Bg2 {[%emt 0:00:19]} Be7 {[%emt 0:01:02]} 5. O-O {[%emt 0:01:35]} O-O {[%emt 0:00:13]} 6. c4 {[%emt 0:00:45]} a5 {[%emt 0:00:20]} 7. Qc2 {[%emt 0:01:12]} Nc6 {[%emt 0:00:31]} 8. a3 {[%emt 0:03:35]} dxc4 {[%emt 0:00:59]} 9. Qxc4 {[%emt 0:01:06]} a4 {[%emt 0:00:48]} 10. Nc3 {[%emt 0:02:18]} Bd7 {[%emt 0:00:23]} 11. Qd3 {[%emt 0:07:51]} Na5 {[%emt 0:00:56]} 12. Ne5 {[%emt 0:03:23]} Be8 {[%emt 0:01:23]} 13. Rd1 {[%emt 0:01:52]} Nb3 {[%emt 0:03:53]} 14. Rb1 {[%emt 0:00:28]} Nd5 {[%emt 0:00:16]} 15. e4 {[%emt 0:09:32]} Nxc3 {[%emt 0:03:10]} 16. Qxc3 {[%emt 0:00:24]} f6 {[%emt 0:09:29]} 17. Nf3 {[%emt 0:01:06]} Bg6 {[%emt 0:06:14]} 18. Re1 {[%emt 0:08:59]} c5 {[%emt 0:02:34]} 19. dxc5 {[%emt 0:00:44]} Bxc5 {[%emt 0:03:03]} 20. Be3 {[%emt 0:03:31]} Qa5 {[%emt 0:07:33]} 21. Qxa5 {[%emt 0:03:48]} Rxa5 {[%emt 0:03:00]} 22. Nh4 {[%emt 0:00:33]} e5 {[%emt 0:17:00]} 23. Nxg6 {[%emt 0:01:00]} hxg6 {[%emt 0:00:03]} 24. Bh3 {[%emt 0:05:51]} Kf7 {[%emt 0:03:31]} 25. Rbd1 {[%emt 0:01:39]} Bd4 {[%emt 0:02:21]} 26. Bd2 {[%emt 0:06:08]} Rc5 {[%emt 0:03:42]} 27. Bc3 {[%emt 0:06:21]} Rd8 {[%emt 0:03:09]} 28. Kf1 {[%emt 0:02:37]} Rc7 {[%emt 0:08:25]} 29. Bg4 {[%emt 0:03:09]} Rd6 {[%emt 0:05:48]} 30. Be2 {[%emt 0:03:21]} Rb6 {[%emt 0:01:43]} 31. Rd3 {[%emt 0:03:04]} Rbc6 {[%emt 0:01:37]} 32. Bxd4 {[%emt 0:01:53]} Nxd4 {[%emt 0:00:22]} 33. Bd1 {[%emt 0:00:22]} Rb6 {[%emt 0:02:06]} 34. Bxa4 {[%emt 0:02:19]} Rxb2 {[%emt 0:00:17]} 35. Ree3 {[%emt 0:05:30]} Ke7 {[%emt 0:03:23]} 36. Kg2 {[%emt 0:02:12]} Rc4 {[%emt 0:01:26]} 37. Bd1 {[%emt 0:01:42]} Rc1 {[%emt 0:00:32]} 38. Ba4 {[%emt 0:02:09]} Ra1 {[%emt 0:01:00]} 39. Rd1 {[%emt 0:00:53]} Raa2 {[%emt 0:02:21]} 40. Rf1 {[%emt 0:00:05]} b5 {[%emt 0:02:37]} 41. Bd1 {[%emt 0:30:06]} Rb1 {[%emt 0:03:56]} 42. Be2 {[%emt 0:00:00]} Rbb2 {[%emt 0:03:43]} 43. Bd1 {[%emt 0:00:00]} g5 {[%emt 0:02:35]} 44. Rc3 {[%emt 0:00:00]} Kd6 {[%emt 0:00:59]} 45. h4 {[%emt 0:00:00]} gxh4 {[%emt 0:00:25]} 46. gxh4 {[%emt 0:00:00]} Ra1 {[%emt 0:04:24]} 47. Bg4 {[%emt 0:00:00]} Rxf1 {[%emt 0:00:50]} 48. Kxf1 {[%emt 0:00:00]} Rb1+ {[%emt 0:00:09]} 49. Kg2 {[%emt 0:00:00]} Rb3 {[%emt 0:00:08]} 50. Rc8 {[%emt 0:00:00]} Rxa3 {[%emt 0:00:22]} 51. Rd8+ {[%emt 0:00:00]} Kc6 {[%emt 0:00:50]} 52. Rc8+ {[%emt 0:00:00]} Kd6 {[%emt 0:05:04]} 53. Rd8+ {[%emt 0:00:00]} Kc5 {[%emt 0:00:31]} 54. Rc8+ {[%emt 0:00:00]} Nc6 {[%emt 0:02:00]} 55. Bd7 {[%emt 0:00:00]} Ra6 {[%emt 0:00:19]} 56. Kf3 {[%emt 0:01:00]} b4 {[%emt 0:00:34]} 57. Ke3 {[%emt 0:00:19]} b3 {[%emt 0:01:08]} 58. Kd2 {[%emt 0:03:05]} Rb6 {[%emt 0:00:49]} 59. Kc1 {[%emt 0:00:39]} Kd6 {[%emt 0:00:38]} 60. Be8 {[%emt 0:00:58]} Nd4 {[%emt 0:01:02]} 61. Kb1 {[%emt 0:03:43]} Rb7 {[%emt 0:00:57]} 62. Ba4 {[%emt 0:00:30]} Rb4 {[%emt 0:02:31]} 63. Rd8+ {[%emt 0:01:17]} Ke6 {[%emt 0:03:04]} 64. Ra8 {[%emt 0:01:53]} b2 {[%emt 0:01:08]} 65. Ra6+ {[%emt 0:00:47]} Ke7 {[%emt 0:01:09]} 66. Ra7+ {[%emt 0:00:12]} Kd8 {[%emt 0:00:41]} 67. Rxg7 {[%emt 0:01:23]} Ne2 {[%emt 0:01:44]} 68. Rd7+ {[%emt 0:00:38]} Kc8 {[%emt 0:00:02]} 69. Rd3 {[%emt 0:00:23]} Rxa4 {[%emt 0:00:23]} 70. h5 {[%emt 0:01:32]} Nf4 {[%emt 0:00:47]} 71. Rc3+ {[%emt 0:00:08]} Kd7 {[%emt 0:00:06]} 72. h6 {[%emt 0:00:05]} Ra1+ {[%emt 0:00:18]} 73. Kxb2 {[%emt 0:00:05]} Rh1 {[%emt 0:00:06]} 0-1

[Event "Sardinia World Festival-A 2024"]
[Site "Orosei"]
[Date "2024.04.27"]
[Round "1.35"]
[White "Ben Ari, Yannay"]
[Black "Cocchi, Andrea"]
[Result "1-0"]
[ECO "A14"]
[WhiteElo "2436"]
[BlackElo "2146"]
[Annotator "TA"]
[PlyCount "63"]
[EventDate "2024.04.26"]
[EventType "swiss"]
[EventCountry "ITA"]
[SourceTitle "playchess.com"]
[Source "ChessBase"]
[SourceQuality "1"]
[TimeControl "40/5400+30:1800+30"]

{[%evp 10,63,22,9,17,0,12,7,8,0,35,33,56,26,54,27,24,14,45,28,53,54,43,48,150,126,160,161,161,135,284,252,400,400,408,396,382,309,525,537,586,547,796,770,954,737,960,972,1016,998,1117,1281,1014,703,1718,1660]} 1. c4 {[%emt 0:00:21]} e6 {[%emt 0:01:15]} 2. g3 {[%emt 0:02:18]} Nf6 {[%emt 0:02:52]} 3. Bg2 {[%emt 0:00:13]} d5 {[%emt 0:00:30]} 4. Nf3 {[%emt 0:00:15][%cal Bg1f3,Bf3d4,Bd4f5][%mdl 32]} Be7 {[%emt 0:01:17]} 5. O-O {[%emt 0:00:28]} O-O {[%emt 0:00:15]} 6. d3 {[%emt 0:00:04]} b6 {[%emt 0:13:41]} 7. cxd5 {[%emt 0:02:14]} exd5 {[%emt 0:08:03]} 8. Nc3 {[%emt 0:00:17]} Bb7 {[%emt 0:00:14] The position is equal.} 9. Nd4 {[%emt 0:00:50]} Qd7 {[%emt 0:09:11] Prevents Nf5.} 10. e4 {[%emt 0:03:55]} c5 {[%emt 0:05:08]} 11. Nf5 {[%emt 0:00:48]} d4 {[%emt 0:03:14]} 12. Ne2 {[%emt 0:21:20]} (12. Nb5 $5) 12... Nc6 {[%emt 0:11:10]} 13. Bg5 {[%emt 0:14:39]} Ne8 {[%emt 0:09:57] [#]} 14. Bh3 $1 {[%emt 0:09:42]} Qd8 {[%emt 0:08:02]} (14... Bxg5 $2 15. Nh6+ Bxh6 16. Bxd7 $18) (14... Kh8 15. Bxe7) 15. Nxe7+ {[%emt 0:01:33]} Nxe7 {[%emt 0:00:02]} 16. b4 {[%emt 0:01:09][%cal Bb2b4,Bb4c5,Bc5b6,Bb6b7][%mdl 32]} f6 {[%emt 0:05:11]} ({Black should try} 16... h6 $14 17. Bxe7 Qxe7) 17. Bc1 $16 {[%emt 0:03:44]} f5 {[%emt 0:04:07]} 18. bxc5 {[%emt 0:06:41]} fxe4 {[%emt 0:00:31]} 19. dxe4 {[%emt 0:00:51]} Ba6 {[%emt 0:05:22] A mistake that costs the game.} (19... Nf6 $16 {might work better.} 20. e5 (20. Qxd4 Nxe4 21. cxb6 axb6 $14) 20... Nd7) 20. cxb6 {[%emt 0:01:55]} d3 {[%emt 0:01:15]} (20... axb6 {was necessary.} 21. Bb2 Nc6) 21. Nf4 $18 {[%emt 0:02:08]} d2 {[%emt 0:01:38]} 22. Bxd2 {[%emt 0:05:43]} Bxf1 {[%emt 0:00:18]} 23. b7 {[%emt 0:08:48]} ({Much less strong is} 23. Kxf1 Qxb6 24. Be3 Qb4 $18) 23... Rb8 $2 {[%emt 0:06:13] [#]} (23... Bxh3 24. bxa8=B (24. bxa8=R Qxa8 25. Qb3+ Kh8 $18) 24... Qxa8) 24. Bxf1 {[%emt 0:02:14] This pair of bishops is nice. White is clearly winning.} Qd4 {[%emt 0:01:20] Inhibits Bc4+.} 25. Rb1 {[%emt 0:01:36]} Ng6 {[%emt 0:01:19]} 26. Qb3+ {[%emt 0:00:14]} Kh8 {[%emt 0:00:08]} 27. Nxg6+ {[%emt 0:01:43]} hxg6 {[%emt 0:00:01]} 28. Be3 {[%emt 0:00:01]} Qe5 {[%emt 0:01:28]} 29. Bxa7 {[%emt 0:02:25]} Nd6 {[%emt 0:00:02]} 30. Bxb8 {[%emt 0:00:09]} Rxb8 {[%emt 0:00:01]} 31. Qd5 {[%emt 0:00:29]} Qe7 {[%emt 0:00:58]} 32. e5 {[%emt 0:00:13] Weighted Error Value: White=0.16 (very precise) /Black=0.53.  Mistake:       	---       	Black=4      Inaccurate:     	White=1     	Black=3      OK:         	White=10    	Black=4      Best:        	White=1     	Black=2} 1-0

[Event "Sardinia World Festival-A 2024"]
[Site "Orosei"]
[Date "2024.04.27"]
[Round "1.36"]
[White "George Samir, David"]
[Black "Trost, Edvin"]
[Result "0-1"]
[ECO "B15"]
[WhiteElo "2142"]
[BlackElo "2434"]
[Annotator "RC"]
[PlyCount "82"]
[EventDate "2024.04.26"]
[EventType "swiss"]
[EventCountry "ITA"]
[SourceTitle "playchess.com"]
[Source "ChessBase"]
[SourceQuality "1"]
[TimeControl "40/5400+30:1800+30"]

1. e4 {[%emt 0:00:03]} c6 {[%emt 0:00:05]} 2. Nc3 {[%emt 0:00:21]} d5 {[%emt 0:00:06]} 3. d4 {[%emt 0:00:07]} dxe4 {[%emt 0:00:06]} 4. Nxe4 {[%emt 0:00:07]} Nf6 {[%emt 0:00:06]} 5. Nxf6+ {[%emt 0:00:05]} exf6 {[%emt 0:00:05]} 6. c3 {[%emt 0:00:17]} Bd6 {[%emt 0:00:35]} 7. Bd3 {[%emt 0:00:17]} O-O {[%emt 0:01:56]} 8. Ne2 {[%emt 0:00:11]} Re8 {[%emt 0:00:58]} 9. Qc2 {[%emt 0:01:57]} h5 {[%emt 0:00:24]} 10. Be3 {[%emt 0:00:27]} Nd7 {[%emt 0:00:14]} 11. O-O-O {[%emt 0:00:59]} Nf8 {[%emt 0:00:10]} 12. c4 {[%emt 0:04:27]} Be6 {[%emt 0:01:46]} 13. Kb1 {[%emt 0:03:18]} Rc8 {[%emt 0:00:25]} 14. Nc3 {[%emt 0:04:37]} Bb4 {[%emt 0:00:31]} 15. a3 {[%emt 0:03:07]} Bxc3 {[%emt 0:00:24]} 16. Qxc3 {[%emt 0:00:01]} b5 {[%emt 0:00:19]} 17. d5 {[%emt 0:00:18]} cxd5 {[%emt 0:05:02]} 18. c5 {[%emt 0:00:14]} Qd7 {[%emt 0:04:39]} 19. h3 {[%emt 0:08:26]} Ng6 {[%emt 0:14:51]} 20. Bd4 {[%emt 0:07:41]} Bf5 {[%emt 0:10:49]} 21. Bxf5 {[%emt 0:09:39]} Qxf5+ {[%emt 0:00:08]} 22. Qd3 {[%emt 0:00:04]} Qxd3+ {[%emt 0:07:31]} 23. Rxd3 {[%emt 0:00:01]} Nf4 {[%emt 0:00:24]} 24. Rdd1 {[%emt 0:06:47]} Re4 {[%emt 0:03:20]} 25. b4 {[%emt 0:11:27]} a5 {[%emt 0:10:49]} 26. f3 {[%emt 0:08:02]} Re2 {[%emt 0:00:30]} 27. g3 {[%emt 0:02:35]} Ne6 {[%emt 0:00:33]} 28. Bb2 {[%emt 0:00:02]} axb4 {[%emt 0:02:46]} 29. axb4 {[%emt 0:02:39]} Re3 {[%emt 0:00:36]} 30. Rxd5 {[%emt 0:01:38]} Rxf3 {[%emt 0:00:18]} 31. Rc1 {[%emt 0:10:48]} Rxg3 {[%emt 0:07:26]} 32. c6 {[%emt 0:01:27]} Rg5 {[%emt 0:00:07]} 33. Rd7 {[%emt 0:03:27]} Rf5 {[%emt 0:00:50]} 34. c7 {[%emt 0:02:40]} Kf8 {[%emt 0:01:29]} 35. Rc6 {[%emt 0:06:06]} Ke8 {[%emt 0:00:09]} 36. Rdd6 {[%emt 0:00:04]} Rf3 {[%emt 0:03:24]} 37. Bd4 {[%emt 0:03:11]} Rb3+ {[%emt 0:00:59]} 38. Kc2 {[%emt 0:00:44]} Rxb4 {[%emt 0:00:05]} 39. Bb6 {[%emt 0:00:04]} Rc4+ {[%emt 0:00:27]} 40. Rxc4 {[%emt 0:00:09]} bxc4 {[%emt 0:00:06]} 41. Rd5 {[%emt 0:30:05]} g6 {[%emt 0:55:32]} 0-1